fUST/lending_fUST_20240917
["ID","MTS","AMOUNT","RATE_DAILY","PERIOD"]
[338334163,1726507838557,-500.0,0.0001749,2]
[338334164,1726507838567,-500.0,0.0001749,2]
[338334165,1726507838578,-500.0,0.0001749,2]
[338334166,1726507838588,-500.0,0.0001749,2]
[338334167,1726507838598,-500.0,0.0001749,2]
[338334168,1726507838608,-500.0,0.0001749,2]
[338334169,1726507838618,-500.0,0.0001749,2]
[338334170,1726507838627,-500.0,0.0001749,2]
[338334171,1726507838636,-500.0,0.0001749,2]
[338334172,1726507838646,-500.0,0.0001749,2]
[338334173,1726507838655,-500.0,0.0001749,2]
[338334174,1726507838664,-500.0,0.0001749,2]
[338334175,1726507838674,-500.0,0.0001749,2]
[338334176,1726507838683,-500.0,0.0001749,2]
[338334177,1726507838694,-151.0,0.00017491,2]
[338334178,1726507838706,-151.0,0.00017491,2]
[338334179,1726507838715,-1672.693884,0.00017491,2]
[338334180,1726507838726,-1672.693884,0.00017491,2]
[338334181,1726507838736,-99003.6154745,0.00017491,2]
[338334182,1726507838746,-5650.33887546,0.00017491,2]
[338334183,1726507838756,-55210.22171467,0.00017501,2]
[338334184,1726507838768,-608.66484805,0.00017527,2]
[338334185,1726507838779,-500.0,0.00017527,2]
[338334186,1726507838789,-500.0,0.00017527,2]
[338334187,1726507838798,-500.0,0.00017527,2]
[338334188,1726507838808,-160.99087297,0.00017527,2]
[338334189,1726507838818,-411.3603175,0.0001753,2]
[338334190,1726507838827,-411.3603175,0.0001753,2]
[338334191,1726507838837,-411.3603175,0.0001753,2]
[338334192,1726507838846,-173.405749,0.00017538,2]
[338334193,1726507838856,-411.3603175,0.0001758,2]
[338334194,1726507838867,-411.3603175,0.0001758,2]
[338334195,1726507838878,-411.3603175,0.0001758,2]
[338334196,1726507838888,-411.3603175,0.0001758,2]
[338334197,1726507838898,-411.3603175,0.0001758,2]
[338334198,1726507838910,-411.3603175,0.0001758,2]
[338334199,1726507838919,-411.3603175,0.0001758,2]
[338334200,1726507838929,-411.3603175,0.0001758,2]
[338334201,1726507838939,-411.3603175,0.0001758,2]
[338334202,1726507838948,-411.3603175,0.0001758,2]
[338334203,1726507838957,-411.3603175,0.0001758,2]
[338334204,1726507838966,-411.3603175,0.0001758,2]
[338334205,1726507838977,-411.3603175,0.0001758,2]
[338334206,1726507838987,-411.3603175,0.0001758,2]
[338334207,1726507838997,-411.3603175,0.0001758,2]
[338334208,1726507839007,-411.3603175,0.0001758,2]
[338334209,1726507839016,-411.3603175,0.0001758,2]
[338334210,1726507839027,-411.3603175,0.0001758,2]
[338334211,1726507839036,-411.3603175,0.0001758,2]
[338334212,1726507839046,-411.3603175,0.000176,2]
[338334213,1726507839055,-411.3603175,0.000176,2]
[338334214,1726507839064,-411.3603175,0.000176,2]
[338334215,1726507839074,-411.3603175,0.000176,2]
[338334216,1726507839083,-411.3603175,0.000176,2]
[338334217,1726507839093,-411.3603175,0.000176,2]
[338334218,1726507839102,-411.3603175,0.000176,2]
[338334219,1726507839112,-411.3603175,0.000176,2]
[338334220,1726507839122,-411.3603175,0.00017678,2]
[338334221,1726507839133,-1214.45543699,0.00017876,2]
[338334222,1726507839145,-1000.0,0.0001789,2]
[338334223,1726507839156,-500.0,0.00017964,2]
[338334224,1726507839165,-500.0,0.00017964,2]
[338334225,1726507839175,-500.0,0.00017964,2]
[338334226,1726507839185,-500.0,0.00017964,2]
[338334227,1726507839194,-500.0,0.00017964,2]
[338334228,1726507839204,-500.0,0.00017964,2]
[338334229,1726507839213,-500.0,0.00017964,2]
[338334230,1726507839225,-500.0,0.00017964,2]
[338334231,1726507839235,-500.0,0.00017964,2]
[338334232,1726507839245,-500.0,0.00017964,2]
[338334233,1726507839257,-170.68864346,0.00017964,2]
[338334234,1726507839267,-151.0,0.00017965,2]
[338334235,1726507839277,-159.649681,0.00017965,2]
[338334236,1726507839287,-1672.693884,0.00017965,2]
[338334237,1726507839296,-1672.693884,0.00017965,2]
[338334238,1726507839306,-99003.6154745,0.00017965,2]
[338334239,1726507839315,-11300.6777509,0.00017965,2]
[338334240,1726507839325,-5650.33887546,0.00017967,2]
[338334241,1726507839335,-5650.33887546,0.00017968,2]
[338334242,1726507839345,-11300.6777509,0.0001797,2]
[338334243,1726507839354,-500.0,0.00017973,2]
[338334244,1726507839364,-545.87309182,0.00017973,2]
[338334245,1726507839374,-500.0,0.00017973,2]
[338334246,1726507839384,-152.307517,0.00017978,2]
[338334247,1726507839394,-151.0,0.00017978,2]
[338334248,1726507839404,-151.0,0.00017978,2]
[338334249,1726507839413,-151.0,0.00017978,2]
[338334250,1726507839423,-288.303052,0.00017978,2]
[338334251,1726507839433,-288.303052,0.00017978,2]
[338334252,1726507839444,-151.0,0.00017978,2]
[338334253,1726507839453,-151.0,0.0001798,2]
[338334254,1726507839463,-690.680572,0.0001798,2]
[338334255,1726507839472,-151.693322,0.0001798,2]
[338334256,1726507839482,-690.680572,0.0001798,2]
[338334257,1726507839491,-151.0,0.0001798,2]
[338334258,1726507839501,-151.0,0.0001798,2]
[338334259,1726507839511,-992.956464,0.0001798,2]
[338334260,1726507839522,-992.956464,0.0001798,2]
[338334261,1726507839531,-992.956464,0.0001798,2]
[338334262,1726507839542,-992.956464,0.0001798,2]
[338334263,1726507839552,-151.0,0.0001798,2]
[338334264,1726507839562,-151.0,0.0001798,2]
[338334265,1726507839571,-151.0,0.0001798,2]
[338334266,1726507839579,-151.0,0.0001798,2]
[338334267,1726507839590,-151.0,0.0001798,2]
[338334268,1726507839599,-151.0,0.0001798,2]
[338334270,1726507839608,-151.0,0.0001798,2]
[338334271,1726507839618,-4000.0,0.0001798,2]
[338334272,1726507839628,-4000.0,0.0001798,2]
[338334274,1726507839638,-4000.0,0.0001798,2]
[338334275,1726507839647,-4000.0,0.0001798,2]
[338334276,1726507839656,-4000.0,0.0001798,2]
[338334277,1726507839666,-726.523665,0.0001798,2]
[338334278,1726507839676,-288.303052,0.0001798,2]
[338334279,1726507839687,-288.303052,0.0001798,2]
[338334280,1726507839698,-268.86379,0.0001798,2]
[338334281,1726507839708,-5650.33887546,0.0001798,2]
[338334282,1726507839717,-151.0,0.0001799,2]
[338334283,1726507839726,-228.608192,0.0001799,2]
[338334284,1726507839736,-151.0,0.0001799,2]
[338334285,1726507839746,-228.608192,0.0001799,2]
[338334286,1726507839755,-151.0,0.0001799,2]
[338334287,1726507839765,-151.0,0.0001799,2]
[338334289,1726507839785,-151.0,0.0001799,2]
[338334291,1726507839794,-151.0,0.0001799,2]
[338334292,1726507839803,-151.0,0.0001799,2]
[338334293,1726507839812,-151.0,0.0001799,2]
[338334294,1726507839822,-171.137768,0.0001799,2]
[338334295,1726507839831,-171.137768,0.0001799,2]
[338334296,1726507839841,-334.753809,0.0001799,2]
[338334297,1726507839853,-334.753809,0.0001799,2]
[338334298,1726507839866,-690.680572,0.0001799,2]
[338334299,1726507839879,-690.680572,0.0001799,2]
[338334300,1726507839891,-361.459464,0.0001799,2]
[338334301,1726507839901,-361.459464,0.0001799,2]
[338334302,1726507839912,-151.0,0.0001799,2]
[338334303,1726507839922,-151.0,0.0001799,2]
[338334304,1726507839933,-151.0,0.0001799,2]
[338334305,1726507839943,-216.009582,0.0001799,2]
[338334306,1726507839953,-151.0,0.0001799,2]
[338334307,1726507839962,-992.956464,0.0001799,2]
[338334308,1726507839973,-992.956464,0.0001799,2]
[338334309,1726507839983,-1422.048878,0.0001799,2]
[338334311,1726507839992,-151.0,0.0001799,2]
[338334312,1726507840001,-1422.048878,0.0001799,2]
[338334313,1726507840010,-249.856661,0.0001799,2]
[338334314,1726507840019,-151.0,0.0001799,2]
[338334315,1726507840028,-20000.0,0.00018,30]
[338334316,1726507840037,-1000.0,0.00018,18]
[338334317,1726507840047,-1672.693884,0.00018,2]
[338334318,1726507840056,-1672.693884,0.00018,2]
[338334319,1726507840066,-998.90631029,0.00018051,2]
[338334320,1726507840075,-1214.45543696,0.00018059,2]
[338334321,1726507840084,-643.04838072,0.0001809,2]
[338334322,1726507840094,-5650.33887546,0.0001819,2]
[338334323,1726507840103,-500.0,0.000182,7]
[338334324,1726507840112,-500.0,0.000182,7]
[338334325,1726507840121,-500.0,0.000182,7]
[338334326,1726507840130,-500.0,0.000182,7]
[338334327,1726507840139,-500.0,0.000182,7]
[338334328,1726507840148,-500.0,0.000182,7]
[338334329,1726507840157,-500.0,0.000182,7]
[338334330,1726507840167,-500.0,0.000182,7]
[338334331,1726507840177,-500.0,0.000182,7]
[338334332,1726507840186,-500.0,0.000182,7]
[338334333,1726507840195,-500.0,0.000182,7]
[338334334,1726507840204,-500.0,0.000182,7]
[338334335,1726507840213,-500.0,0.000182,7]
[338334336,1726507840222,-500.0,0.000182,7]
[338334337,1726507840231,-500.0,0.000182,7]
[338334338,1726507840240,-500.0,0.000182,7]
[338334339,1726507840249,-500.0,0.000182,7]
[338334340,1726507840258,-500.0,0.000182,7]
[338334341,1726507840268,-500.0,0.000182,7]
[338334342,1726507840278,-500.0,0.000182,7]
[338334343,1726507840291,-500.0,0.000182,7]
[338334344,1726507840300,-500.0,0.000182,7]
[338334345,1726507840312,-500.0,0.000182,7]
[338334346,1726507840321,-500.0,0.000182,7]
[338334347,1726507840493,-500.0,0.000182,7]
[338334348,1726507840503,-500.0,0.000182,7]
[338334349,1726507840512,-500.0,0.000182,7]
[338334350,1726507840522,-500.0,0.000182,7]
[338334351,1726507840531,-500.0,0.000182,7]
[338334352,1726507840540,-500.0,0.000182,7]
[338334353,1726507840550,-500.0,0.000182,7]
[338334354,1726507840559,-500.0,0.000182,7]
[338334355,1726507840568,-500.0,0.000182,7]
[338334356,1726507840577,-500.0,0.000182,7]
[338334357,1726507840587,-500.0,0.000182,7]
[338334358,1726507840596,-500.0,0.000182,7]
[338334359,1726507840606,-500.0,0.000182,7]
[338334360,1726507840615,-500.0,0.000182,7]
[338334361,1726507840625,-584.8,0.000182,7]
[338334362,1726507840634,-151.0,0.000182,2]
[338334363,1726507840643,-228.608192,0.000182,2]
[338334364,1726507840653,-228.608192,0.000182,2]
[338334365,1726507840662,-151.0,0.000182,2]
[338334366,1726507840671,-151.0,0.000182,2]
[338334367,1726507840682,-151.0,0.000182,2]
[338334368,1726507840692,-151.0,0.000182,2]
[338334369,1726507840701,-151.0,0.000182,2]
[338334370,1726507840710,-151.0,0.000182,2]
[338334371,1726507840720,-171.137768,0.000182,2]
[338334372,1726507840730,-171.137768,0.000182,2]
[338334373,1726507840739,-334.753809,0.000182,2]
[338334374,1726507840749,-334.753809,0.000182,2]
[338334375,1726507840759,-361.459464,0.000182,2]
[338334376,1726507840768,-361.459464,0.000182,2]
[338334377,1726507840780,-151.0,0.000182,2]
[338334378,1726507840791,-1422.048878,0.000182,2]
[338334379,1726507840800,-1422.048878,0.000182,2]
[338334380,1726507840810,-151.0,0.000182,2]
[338334381,1726507840819,-151.0,0.000182,2]
[338334382,1726507840828,-158.628368,0.000182,2]
[338334383,1726507840839,-151.0,0.000182,2]
[338334384,1726507840848,-288.303052,0.000182,2]
[338334385,1726507840858,-288.303052,0.000182,2]
[338334386,1726507840867,-1214.45543696,0.00018243,2]
[338334387,1726507840877,-150.112233,0.000184,2]
[338334388,1726507840888,-1214.45543696,0.00018426,2]
[338334389,1726507840897,-150.112233,0.000185,2]
[338334390,1726507840907,-420.0,0.00018555,2]
[338334391,1726507840917,-150.112233,0.000186,2]
[338334392,1726507840926,-1214.45543696,0.00018609,2]
[338334393,1726507840936,-2732.99275536,0.00018644,2]
[338334394,1726507840946,-420.0,0.00018687,2]
[338334395,1726507840958,-7133.92653942,0.00018696,2]
[338334396,1726507840969,-5650.33887546,0.00018699,2]
[338334397,1726507840980,-150.112233,0.000187,2]
[338334398,1726507840990,-150.0,0.00018705,2]
[338334399,1726507840999,-151.0,0.00018709,2]
[338334400,1726507841009,-228.608192,0.00018709,2]
[338334401,1726507841018,-228.608192,0.00018709,2]
[338334402,1726507841028,-151.0,0.00018709,2]
[338334403,1726507841036,-151.0,0.00018709,2]
[338334404,1726507841045,-151.0,0.00018709,2]
[338334405,1726507841054,-151.0,0.00018709,2]
[338334406,1726507841064,-151.0,0.00018709,2]
[338334407,1726507841074,-151.0,0.00018709,2]
[338334408,1726507841083,-151.0,0.00018709,2]
[338334409,1726507841092,-171.137768,0.00018709,2]
[338334410,1726507841103,-171.137768,0.00018709,2]
[338334411,1726507841112,-334.753809,0.00018709,2]
[338334412,1726507841123,-334.753809,0.00018709,2]
[338334413,1726507841132,-690.680572,0.00018709,2]
[338334414,1726507841143,-690.680572,0.00018709,2]
[338334415,1726507841153,-361.459464,0.00018709,2]
[338334416,1726507841163,-361.459464,0.00018709,2]
[338334417,1726507841172,-151.0,0.00018709,2]
[338334418,1726507841182,-151.0,0.00018709,2]
[338334419,1726507841192,-151.0,0.00018709,2]
[338334420,1726507841202,-992.956464,0.00018709,2]
[338334421,1726507841212,-992.956464,0.00018709,2]
[338334422,1726507841222,-1422.048878,0.00018709,2]
[338334423,1726507841231,-1422.048878,0.00018709,2]
[338334424,1726507841241,-151.0,0.00018709,2]
[338334425,1726507841251,-160.0,0.0001876,2]
[338334426,1726507841260,-3000.0,0.000188,2]
[338334427,1726507841271,-150.112233,0.000188,2]
[338334428,1726507841280,-151.0,0.000188,2]
[338334429,1726507841289,-151.0,0.000188,2]
[338334430,1726507841300,-288.303052,0.000188,2]
[338334431,1726507841310,-288.303052,0.000188,2]
[338334432,1726507841320,-5650.33887546,0.000188,3]
[338334433,1726507841329,-195.84530364,0.000188,2]
[338334434,1726507841339,-3000.0,0.0001881,2]
[338334435,1726507841350,-3000.0,0.0001882,2]
[338334436,1726507841359,-1672.693884,0.0001882,2]
[338334437,1726507841368,-1672.693884,0.0001882,2]
[338334438,1726507841378,-3000.0,0.0001883,2]
[338334439,1726507841387,-3000.0,0.0001884,2]
[338334440,1726507841397,-3000.0,0.0001885,2]
[338334441,1726507841407,-5650.33887546,0.0001885,3]
[338334442,1726507841418,-46367.82944917,0.0001886,5]
[338334443,1726507841429,-3000.0,0.0001886,2]
[338334444,1726507841439,-253.269986,0.0001886,2]
[338334445,1726507841450,-228.608192,0.0001886,2]
[338334446,1726507841460,-228.608192,0.0001886,2]
[338334447,1726507841469,-151.0,0.0001886,2]
[338334448,1726507841481,-151.0,0.0001886,2]
[338334449,1726507841492,-151.0,0.0001886,2]
[338334450,1726507841503,-151.0,0.0001886,2]
[338334451,1726507841513,-151.0,0.0001886,2]
[338334452,1726507841523,-151.0,0.0001886,2]
[338334453,1726507841533,-151.0,0.0001886,2]
[338334454,1726507841542,-171.137768,0.0001886,2]
[338334455,1726507841553,-171.137768,0.0001886,2]
[338334456,1726507841565,-334.753809,0.0001886,2]
[338334457,1726507841574,-334.753809,0.0001886,2]
[338334458,1726507841584,-690.680572,0.0001886,2]
[338334459,1726507841596,-690.680572,0.0001886,2]
[338334460,1726507841608,-361.459464,0.0001886,2]
[338334461,1726507841618,-361.459464,0.0001886,2]
[338334462,1726507841627,-151.0,0.0001886,2]
[338334463,1726507841637,-151.0,0.0001886,2]
[338334464,1726507841648,-151.0,0.0001886,2]
[338334465,1726507841659,-992.956464,0.0001886,2]
[338334466,1726507841669,-992.956464,0.0001886,2]
[338334467,1726507841680,-1422.048878,0.0001886,2]
[338334468,1726507841691,-1422.048878,0.0001886,2]
[338334469,1726507841703,-151.0,0.0001886,2]
[338334470,1726507841713,-151.0,0.0001886,2]
[338334471,1726507841723,-3000.0,0.0001887,2]
[338334472,1726507841734,-3000.0,0.0001888,2]
[338334473,1726507841744,-5650.33887546,0.00018888,3]
[338334474,1726507841754,-5650.33887546,0.00018889,3]
[338334475,1726507841765,-3000.0,0.0001889,2]
[338334476,1726507841779,-151.0,0.0001889,2]
[338334477,1726507841789,-151.0,0.0001889,2]
[338334478,1726507841801,-288.303052,0.0001889,2]
[338334479,1726507841811,-288.303052,0.0001889,2]
[338334480,1726507841822,-1000.0,0.00018897,2]
[338334481,1726507841832,-975.455696,0.00018897,2]
[338334482,1726507841841,-500.0,0.00018897,2]
[338334483,1726507841853,-1672.693884,0.00018898,2]
[338334484,1726507841861,-1672.693884,0.00018898,2]
[338334485,1726507841871,-992.956464,0.00018899,2]
[338334486,1726507841880,-992.956464,0.00018899,2]
[338334487,1726507841889,-151.0,0.00018899,2]
[338334488,1726507841898,-198.75958,0.00018899,2]
[338334489,1726507841908,-288.303052,0.00018899,2]
[338334490,1726507841918,-288.303052,0.00018899,2]
[338334491,1726507841929,-5650.33887546,0.00018899,3]
[338334492,1726507841938,-3000.0,0.000189,2]
[338334493,1726507841947,-151.0,0.00018909,2]
[338334494,1726507841959,-151.0,0.00018909,2]
[338334495,1726507841972,-269.209936,0.00018909,2]
[338334496,1726507841983,-151.0,0.00018909,2]
[338334497,1726507841994,-151.0,0.00018909,2]
[338334498,1726507842005,-151.0,0.00018909,2]
[338334499,1726507842016,-151.0,0.00018909,2]
[338334500,1726507842026,-151.0,0.00018909,2]
[338334501,1726507842038,-152.87589,0.00018909,2]
[338334502,1726507842047,-151.0,0.00018909,2]
[338334503,1726507842056,-151.0,0.00018909,2]
[338334504,1726507842066,-151.0,0.00018909,2]
[338334505,1726507842078,-151.0,0.00018909,2]
[338334506,1726507842089,-151.0,0.00018909,2]
[338334507,1726507842100,-151.0,0.00018909,2]
[338334508,1726507842111,-151.0,0.00018909,2]
[338334509,1726507842122,-575.104493,0.00018909,2]
[338334510,1726507842132,-1776.715909,0.00018909,2]
[338334511,1726507842142,-575.104493,0.00018909,2]
[338334512,1726507842151,-151.294465,0.00018909,2]
[338334513,1726507842161,-151.0,0.00018909,2]
[338334514,1726507842172,-3000.0,0.0001891,2]
[338334515,1726507842182,-228.608192,0.00018919,2]
[338334516,1726507842191,-228.608192,0.00018919,2]
[338334517,1726507842201,-151.0,0.00018919,2]
[338334518,1726507842210,-151.0,0.00018919,2]
[338334519,1726507842220,-151.0,0.00018919,2]
[338334520,1726507842230,-151.0,0.00018919,2]
[338334521,1726507842239,-151.0,0.00018919,2]
[338334522,1726507842249,-250.13578,0.00018919,2]
[338334523,1726507842258,-151.0,0.00018919,2]
[338334524,1726507842268,-171.137768,0.00018919,2]
[338334525,1726507842277,-171.137768,0.00018919,2]
[338334526,1726507842286,-334.753809,0.00018919,2]
[338334527,1726507842295,-334.753809,0.00018919,2]
[338334528,1726507842305,-690.680572,0.00018919,2]
[338334529,1726507842314,-690.680572,0.00018919,2]
[338334530,1726507842323,-361.459464,0.00018919,2]
[338334531,1726507842332,-361.459464,0.00018919,2]
[338334532,1726507842342,-151.0,0.00018919,2]
[338334533,1726507842351,-151.0,0.00018919,2]
[338334534,1726507842361,-1422.048878,0.00018919,2]
[338334535,1726507842370,-1422.048878,0.00018919,2]
[338334536,1726507842379,-151.0,0.00018919,2]
[338334537,1726507842389,-3000.0,0.0001892,2]
[338334538,1726507842399,-3000.0,0.0001893,2]
[338334539,1726507842408,-992.956464,0.0001893,2]
[338334540,1726507842417,-992.956464,0.0001893,2]
[338334541,1726507842427,-5650.33887546,0.00018939,3]
[338334542,1726507842437,-3000.0,0.0001894,2]
[338334543,1726507842447,-151.0,0.00018949,2]
[338334544,1726507842456,-151.0,0.00018949,2]
[338334545,1726507842465,-224.383354,0.00018949,2]
[338334546,1726507842475,-151.0,0.00018949,2]
[338334547,1726507842484,-153.385216,0.00018949,2]
[338334548,1726507842493,-151.0,0.00018949,2]
[338334549,1726507842503,-151.0,0.00018949,2]
[338334550,1726507842512,-151.0,0.00018949,2]
[338334551,1726507842522,-151.0,0.00018949,2]
[338334552,1726507842531,-151.0,0.00018949,2]
[338334554,1726507842541,-151.0,0.00018949,2]
[338334555,1726507842550,-151.0,0.00018949,2]
[338334556,1726507842560,-151.0,0.00018949,2]
[338334558,1726507842569,-151.0,0.00018949,2]
[338334560,1726507842578,-575.104493,0.00018949,2]
[338334561,1726507842587,-1776.715909,0.00018949,2]
[338334562,1726507842596,-575.104493,0.00018949,2]
[338334563,1726507842606,-1672.693884,0.00018949,2]
[338334564,1726507842616,-1672.693884,0.00018949,2]
[338334565,1726507842626,-3000.0,0.0001895,2]
[338334566,1726507842636,-151.0,0.0001895,2]
[338334567,1726507842645,-3000.0,0.0001896,2]
[338334568,1726507842654,-11300.6777509,0.0001896,3]
[338334569,1726507842664,-736.474,0.00018967,2]
[338334570,1726507842674,-198.038,0.00018967,2]
[338334573,1726507842684,-151.0,0.0001897,2]
[338334575,1726507842693,-193.018,0.0001897,2]
[338334576,1726507842702,-151.0,0.0001897,2]
[338334578,1726507842712,-151.0,0.0001897,2]
[338334580,1726507842722,-151.0,0.0001897,2]
[338334582,1726507842731,-151.0,0.0001897,2]
[338334584,1726507842741,-3000.0,0.0001897,2]
[338334586,1726507842751,-151.3934,0.0001897,2]
[338334588,1726507842761,-151.0,0.0001897,2]
[338334591,1726507842770,-151.0,0.0001897,2]
[338334593,1726507842796,-575.104493,0.0001897,2]
[338334596,1726507842805,-1776.715909,0.0001897,2]
[338334600,1726507842815,-575.104493,0.0001897,2]
[338334602,1726507842825,-228.608192,0.0001897,2]
[338334604,1726507842837,-228.608192,0.0001897,2]
[338334606,1726507842847,-151.0,0.0001897,2]
[338334608,1726507842856,-151.0,0.0001897,2]
[338334609,1726507842865,-151.0,0.0001897,2]
[338334610,1726507842875,-151.0,0.0001897,2]
[338334611,1726507842885,-151.0,0.0001897,2]
[338334612,1726507842894,-171.137768,0.0001897,2]
[338334613,1726507842904,-171.137768,0.0001897,2]
[338334614,1726507842914,-334.753809,0.0001897,2]
[338334615,1726507842924,-334.753809,0.0001897,2]
[338334616,1726507842933,-690.680572,0.0001897,2]
[338334618,1726507842943,-690.680572,0.0001897,2]
[338334620,1726507842952,-361.459464,0.0001897,2]
[338334621,1726507842963,-361.459464,0.0001897,2]
[338334622,1726507842973,-205.556432,0.0001897,2]
[338334623,1726507842983,-151.0,0.0001897,2]
[338334624,1726507842994,-151.0,0.0001897,2]
[338334625,1726507843004,-992.956464,0.0001897,2]
[338334626,1726507843014,-992.956464,0.0001897,2]
[338334627,1726507843025,-1422.048878,0.0001897,2]
[338334628,1726507843034,-1422.048878,0.0001897,2]
[338334629,1726507843044,-151.0,0.0001897,2]
[338334630,1726507843053,-151.0,0.0001897,2]
[338334631,1726507843063,-271.021188,0.0001897,2]
[338334632,1726507843072,-288.303052,0.0001897,2]
[338334633,1726507843082,-288.303052,0.0001897,2]
[338334634,1726507843239,-288.303052,0.0001897,2]
[338334635,1726507843251,-288.303052,0.0001897,2]
[338334636,1726507843262,-1672.693884,0.0001897,2]
[338334637,1726507843279,-1672.693884,0.0001897,2]
[338334638,1726507843293,-151.0,0.0001897,2]
[338334639,1726507843303,-500.0,0.00018973,2]
[338334640,1726507843312,-500.0,0.00018973,2]
[338334641,1726507843322,-21055.27640185,0.00018976,2]
[338334642,1726507843332,-228.608192,0.00018976,2]
[338334643,1726507843341,-228.608192,0.00018976,2]
[338334644,1726507843351,-151.0,0.00018976,2]
[338334645,1726507843360,-151.0,0.00018976,2]
[338334646,1726507843371,-151.0,0.00018976,2]
[338334647,1726507843380,-151.0,0.00018976,2]
[338334648,1726507843389,-151.0,0.00018976,2]
[338334649,1726507843398,-171.137768,0.00018976,2]
[338334650,1726507843407,-171.137768,0.00018976,2]
[338334651,1726507843417,-334.753809,0.00018976,2]
[338334652,1726507843426,-334.753809,0.00018976,2]
[338334653,1726507843436,-690.680572,0.00018976,2]
[338334654,1726507843446,-690.680572,0.00018976,2]
[338334655,1726507843455,-361.459464,0.00018976,2]
[338334656,1726507843465,-361.459464,0.00018976,2]
[338334657,1726507843474,-151.0,0.00018976,2]
[338334658,1726507843483,-151.0,0.00018976,2]
[338334659,1726507843493,-1422.048878,0.00018976,2]
[338334660,1726507843503,-1422.048878,0.00018976,2]
[338334661,1726507843512,-151.0,0.00018976,2]
[338334662,1726507843521,-151.0,0.0001898,2]
[338334663,1726507843531,-151.0,0.0001898,2]
[338334664,1726507843540,-151.0,0.0001898,2]
[338334665,1726507843550,-151.0,0.0001898,2]
[338334666,1726507843559,-151.0,0.0001898,2]
[338334667,1726507843569,-151.0,0.0001898,2]
[338334668,1726507843578,-151.0,0.0001898,2]
[338334669,1726507843587,-3000.0,0.0001898,2]
[338334670,1726507843597,-151.0,0.0001898,2]
[338334671,1726507843606,-284.853426,0.0001898,2]
[338334672,1726507843616,-1776.715909,0.0001898,2]
[338334673,1726507843625,-575.104493,0.0001898,2]
[338334674,1726507843635,-575.104493,0.0001898,2]
[338334675,1726507843644,-1776.715909,0.0001898,2]
[338334676,1726507843653,-151.0,0.0001899,2]
[338334677,1726507843662,-151.0,0.0001899,2]
[338334678,1726507843671,-151.0,0.0001899,2]
[338334679,1726507843680,-151.0,0.0001899,2]
[338334680,1726507843690,-3000.0,0.0001899,2]
[338334681,1726507843699,-151.0,0.0001899,2]
[338334682,1726507843709,-1776.715909,0.0001899,2]
[338334683,1726507843719,-575.104493,0.0001899,2]
[338334684,1726507843728,-575.104493,0.0001899,2]
[338334685,1726507843738,-1776.715909,0.0001899,2]
[338334686,1726507843747,-409.75612961,0.00018993,2]
[338334687,1726507843757,-5751.16267283,0.00018993,2]
[338334688,1726507843766,-621.15241904,0.00018994,2]
[338334689,1726507843783,-1000.0,0.00018998,2]
[338334690,1726507843793,-1000.0,0.00018998,2]
[338334691,1726507843802,-1000.0,0.00018998,2]
[338334692,1726507843811,-1000.0,0.00018998,2]
[338334693,1726507843823,-1000.0,0.00018998,2]